fUST/lending_fUST_20250730
["ID","MTS","AMOUNT","RATE_DAILY","PERIOD"]
[375989180,1753812648888,-1000.0,0.000196,2]
[375989182,1753812648898,-160.97254021,0.00019621,2]
[375989184,1753812648908,-969.0,0.00019818,2]
[375989186,1753812648918,-407.0,0.00019818,2]
[375989188,1753812648928,-425.682,0.00019818,2]
[375989191,1753812648938,-479.0,0.00019847,2]
[375989193,1753812648947,-168.0,0.00019856,2]
[375989195,1753812648956,-2091.52,0.0001986,2]
[375989196,1753812648966,-460.0,0.0001986,2]
[375989199,1753812648975,-1662.95,0.0001986,2]
[375989201,1753812648985,-460.0,0.0001986,2]
[375989202,1753812648995,-609.5273859,0.0001986,2]
[375989205,1753812649006,-460.0,0.0001986,2]
[375989207,1753812649016,-1064.28,0.0001986,2]
[375989209,1753812649025,-1469.03,0.0001986,2]
[375989211,1753812649034,-460.0,0.0001986,2]
[375989213,1753812649043,-4496.36,0.0001986,2]
[375989215,1753812649053,-168.0,0.0001986,2]
[375989217,1753812649062,-460.0,0.00019861,2]
[375989219,1753812649071,-460.0,0.00019861,2]
[375989221,1753812649080,-643.61,0.00019861,2]
[375989223,1753812649089,-460.0,0.00019861,2]
[375989225,1753812649098,-477.28,0.00019861,2]
[375989227,1753812649109,-460.0,0.00019861,2]
[375989229,1753812649118,-705.82,0.00019861,2]
[375989231,1753812649129,-460.0,0.00019861,2]
[375989233,1753812649139,-460.0,0.00019861,2]
[375989235,1753812649148,-460.0,0.00019861,2]
[375989237,1753812649157,-460.0,0.00019861,2]
[375989239,1753812649167,-460.0,0.00019861,2]
[375989241,1753812649176,-460.0,0.00019861,2]
[375989243,1753812649185,-546.12,0.00019861,2]
[375989245,1753812649195,-504.44,0.00019862,2]
[375989247,1753812649205,-460.0,0.00019862,2]
[375989249,1753812649216,-460.0,0.00019862,2]
[375989251,1753812649225,-493.95,0.00019862,2]
[375989253,1753812649234,-460.0,0.00019862,2]
[375989255,1753812649245,-460.0,0.00019862,2]
[375989257,1753812649255,-460.0,0.00019862,2]
[375989259,1753812649264,-1620.2,0.00019862,2]
[375989261,1753812649274,-460.0,0.00019862,2]
[375989263,1753812649284,-956.26,0.00019862,2]
[375989265,1753812649293,-724.14,0.00019862,2]
[375989267,1753812649303,-460.0,0.00019862,2]
[375989269,1753812649313,-689.92,0.00019862,2]
[375989271,1753812649322,-516.53,0.00019862,2]
[375989273,1753812649332,-460.0,0.00019862,2]
[375989275,1753812649341,-460.0,0.00019862,2]
[375989277,1753812649351,-241.28,0.00019862,2]
[375989279,1753812649361,-460.0,0.00019863,2]
[375989281,1753812649370,-1586.69,0.00019863,2]
[375989283,1753812649379,-413.73197318,0.00019863,2]
[375989285,1753812649388,-460.0,0.00019863,2]
[375989287,1753812649397,-1420.01,0.00019863,2]
[375989289,1753812649406,-460.0,0.00019863,2]
[375989291,1753812649416,-313.81819816,0.00019863,2]
[375989293,1753812649425,-460.0,0.00019863,2]
[375989294,1753812649434,-460.0,0.00019863,2]
[375989296,1753812649444,-151.0,0.00019864,2]
[375989298,1753812649453,-1488.32,0.00019864,2]
[375989300,1753812649464,-7759.41,0.00019864,2]
[375989302,1753812649473,-1104.46,0.00019864,2]
[375989304,1753812649482,-1355.72,0.00019864,2]
[375989306,1753812649492,-1482.46,0.00019865,2]
[375989308,1753812649501,-1730.21,0.00019865,2]
[375989310,1753812649510,-1705.34,0.00019866,2]
[375989312,1753812649520,-460.0,0.00019866,2]
[375989314,1753812649529,-151.0,0.00019895,2]
[375989316,1753812649539,-770.0,0.00019895,2]
[375989318,1753812649548,-500.0,0.00019895,2]
[375989320,1753812649557,-151.0,0.00019895,2]
[375989322,1753812649567,-151.0,0.00019895,2]
[375989324,1753812649575,-151.0,0.00019895,2]
[375989326,1753812649585,-500.0,0.00019895,2]
[375989341,1753812649710,-151.4272048,0.00019895,2]
[375989343,1753812649719,-151.0,0.00019895,2]
[375989345,1753812649729,-151.0,0.00019895,2]
[375989347,1753812649738,-215.111652,0.00019898,2]
[375989349,1753812649747,-1868.76977833,0.000199,2]
[375989351,1753812649760,-222.706,0.00019955,2]
[375989353,1753812649769,-150.0,0.00019955,2]
[375989355,1753812649778,-150.0,0.00019955,2]
[375989357,1753812649787,-150.0,0.00019955,2]
[375989359,1753812649798,-2159.0,0.00019955,2]
[375989361,1753812649807,-168.0,0.00019988,2]
[375989363,1753812649816,-1868.76977814,0.00020003,2]
[375989365,1753812649826,-260.0,0.00020015,2]
[375989367,1753812649837,-500.9491733,0.00020072,2]
[375989369,1753812649847,-500.0,0.00020072,2]
[375989371,1753812649856,-1000.0,0.000201,2]
[375989373,1753812649866,-189.926797,0.000201,2]
[375989375,1753812649875,-1868.76977814,0.00020107,2]
[375989377,1753812649884,-500.0,0.00020127,3]
[375989379,1753812649893,-2091.52,0.00020134,2]
[375989381,1753812649903,-460.0,0.00020134,2]
[375989383,1753812649912,-1662.95,0.00020134,2]
[375989385,1753812649921,-460.0,0.00020134,2]
[375989387,1753812649931,-460.0,0.00020134,2]
[375989389,1753812649940,-1064.28,0.00020134,2]
[375989391,1753812649949,-1469.03,0.00020134,2]
[375989393,1753812649958,-460.0,0.00020134,2]
[375989395,1753812649970,-4496.36,0.00020134,2]
[375989397,1753812649979,-181.90646082,0.00020135,2]
[375989399,1753812649988,-460.0,0.00020135,2]
[375989401,1753812649998,-643.61,0.00020135,2]
[375989404,1753812650008,-460.0,0.00020135,2]
[375989406,1753812650019,-477.28,0.00020135,2]
[375989408,1753812650028,-460.0,0.00020135,2]
[375989410,1753812650037,-705.82,0.00020135,2]
[375989412,1753812650047,-460.0,0.00020135,2]
[375989414,1753812650056,-460.0,0.00020135,2]
[375989416,1753812650065,-460.0,0.00020135,2]
[375989418,1753812650074,-460.0,0.00020135,2]
[375989420,1753812650084,-460.0,0.00020135,2]
[375989422,1753812650093,-460.0,0.00020135,2]
[375989424,1753812650103,-546.12,0.00020135,2]
[375989426,1753812650112,-504.44,0.00020136,2]
[375989428,1753812650121,-460.0,0.00020136,2]
[375989429,1753812650131,-405.03558894,0.00020136,2]
[375989431,1753812650140,-493.95,0.00020136,2]
[375989434,1753812650149,-460.0,0.00020136,2]
[375989436,1753812650159,-460.0,0.00020136,2]
[375989438,1753812650168,-460.0,0.00020136,2]
[375989440,1753812650177,-1620.2,0.00020136,2]
[375989442,1753812650186,-460.0,0.00020136,2]
[375989444,1753812650195,-956.26,0.00020136,2]
[375989446,1753812650205,-724.14,0.00020136,2]
[375989448,1753812650215,-460.0,0.00020136,2]
[375989450,1753812650226,-689.92,0.00020136,2]
[375989452,1753812650235,-516.53,0.00020136,2]
[375989454,1753812650245,-156.15,0.00020136,2]
[375989456,1753812650254,-460.0,0.00020136,2]
[375989458,1753812650263,-460.0,0.00020137,2]
[375989460,1753812650271,-1586.69,0.00020137,2]
[375989462,1753812650281,-151.0,0.00020137,2]
[375989464,1753812650290,-460.0,0.00020137,2]
[375989466,1753812650299,-1420.01,0.00020137,2]
[375989468,1753812650308,-460.0,0.00020137,2]
[375989470,1753812650317,-460.0,0.00020137,2]
[375989472,1753812650326,-460.0,0.00020137,2]
[375989474,1753812650335,-1488.32,0.00020138,2]
[375989476,1753812650345,-7759.41,0.00020138,2]
[375989478,1753812650353,-1104.46,0.00020138,2]
[375989480,1753812650363,-1355.72,0.00020138,2]
[375989482,1753812650372,-1482.46,0.00020139,2]
[375989484,1753812650381,-1730.21,0.00020139,2]
[375989486,1753812650391,-1705.34,0.0002014,2]
[375989488,1753812650400,-460.0,0.0002014,2]
[375989490,1753812650410,-242.079458,0.00020141,2]
[375989492,1753812650419,-151.0,0.00020141,2]
[375989494,1753812650428,-151.0,0.00020141,2]
[375989496,1753812650437,-236.59655,0.00020141,2]
[375989498,1753812650446,-151.0,0.00020141,2]
[375989500,1753812650455,-479.0,0.00020151,2]
[375989502,1753812650467,-198.0,0.00020169,2]
[375989504,1753812650476,-770.0,0.00020169,2]
[375989506,1753812650486,-565.21776314,0.00020169,2]
[375989508,1753812650495,-202.42119693,0.00020169,2]
[375989510,1753812650506,-500.0,0.00020169,2]
[375989512,1753812650515,-189.72464462,0.00020169,2]
[375989514,1753812650524,-264.53176181,0.00020169,2]
[375989516,1753812650533,-320.293271,0.00020187,2]
[375989518,1753812650543,-1868.76977814,0.0002021,2]
[375989520,1753812650552,-1868.76977814,0.00020314,3]
[375989522,1753812650561,-1926.6,0.00020335,3]
[375989524,1753812650571,-2091.52,0.00020408,2]
[375989526,1753812650580,-460.0,0.00020408,2]
[375989528,1753812650589,-1662.95,0.00020408,2]
[375989530,1753812650598,-460.0,0.00020408,2]
[375989532,1753812650607,-460.0,0.00020408,2]
[375989534,1753812650616,-1064.28,0.00020408,2]
[375989536,1753812650633,-1469.03,0.00020408,2]
[375989538,1753812650642,-460.0,0.00020408,2]
[375989540,1753812650652,-4496.36,0.00020408,2]
[375989542,1753812650661,-460.0,0.00020409,2]
[375989544,1753812650670,-643.61,0.00020409,2]
[375989547,1753812650680,-460.0,0.00020409,2]
[375989549,1753812650690,-477.28,0.00020409,2]
[375989550,1753812650699,-460.0,0.00020409,2]
[375989553,1753812650708,-705.82,0.00020409,2]
[375989555,1753812650720,-460.0,0.00020409,2]
[375989557,1753812650729,-460.0,0.00020409,2]
[375989559,1753812650738,-460.0,0.00020409,2]
[375989561,1753812650751,-460.0,0.00020409,2]
[375989563,1753812650772,-460.0,0.00020409,2]
[375989565,1753812650781,-460.0,0.00020409,2]
[375989567,1753812650793,-546.12,0.00020409,2]
[375989569,1753812650803,-504.44,0.0002041,2]
[375989571,1753812650812,-460.0,0.0002041,2]
[375989573,1753812650822,-493.95,0.0002041,2]
[375989575,1753812650834,-460.0,0.0002041,2]
[375989577,1753812650844,-460.0,0.0002041,2]
[375989579,1753812650854,-460.0,0.0002041,2]
[375989581,1753812650863,-1620.2,0.0002041,2]
[375989583,1753812650872,-460.0,0.0002041,2]
[375989585,1753812650882,-956.26,0.0002041,2]
[375989587,1753812650891,-724.14,0.0002041,2]
[375989589,1753812650901,-460.0,0.0002041,2]
[375989592,1753812650910,-689.92,0.0002041,2]
[375989594,1753812650920,-516.53,0.0002041,2]
[375989595,1753812650930,-460.0,0.0002041,2]
[375989598,1753812650939,-460.0,0.00020411,2]
[375989600,1753812650948,-1586.69,0.00020411,2]
[375989602,1753812650958,-460.0,0.00020411,2]
[375989604,1753812650968,-1420.01,0.00020411,2]
[375989606,1753812650977,-460.0,0.00020411,2]
[375989608,1753812650987,-460.0,0.00020411,2]
[375989610,1753812650996,-460.0,0.00020411,2]
[375989612,1753812651006,-1488.32,0.00020412,2]
[375989614,1753812651015,-7759.41,0.00020412,2]
[375989616,1753812651024,-1104.46,0.00020412,2]
[375989618,1753812651034,-1355.72,0.00020412,2]
[375989620,1753812651044,-1482.46,0.00020413,2]
[375989622,1753812651056,-1730.21,0.00020413,2]
[375989624,1753812651065,-1705.34,0.00020414,2]
[375989626,1753812651074,-460.0,0.00020414,2]
[375989628,1753812651083,-1868.76977814,0.00020417,3]
[375989630,1753812651092,-770.0,0.00020443,2]
[375989632,1753812651101,-136.93144348,0.00020443,2]
[375989648,1753812651242,-363.06855652,0.00020443,2]
[375989650,1753812651252,-420.0,0.00020457,2]
[375989652,1753812651261,-1868.76977814,0.00020521,3]
[375989654,1753812651270,-507.63027293,0.00020545,2]
[375989655,1753812651280,-500.0,0.00020545,2]
[375989656,1753812651289,-500.0,0.00020545,2]
[375989657,1753812651298,-513.72045867,0.00020545,2]
[375989658,1753812651307,-500.0,0.00020545,2]
[375989659,1753812651316,-500.43350513,0.00020545,2]
[375989660,1753812651325,-500.0,0.00020548,2]
[375989661,1753812651334,-360.0,0.00020563,2]
[375989662,1753812651343,-4178.77742861,0.00020624,3]
[375989663,1753812651355,-8458.3497856,0.00020624,3]
[375989664,1753812651363,-1868.76977814,0.00020624,3]
[375989665,1753812651374,-2091.52,0.00020682,2]
[375989666,1753812651383,-460.0,0.00020682,2]
[375989667,1753812651392,-16.40325494,0.00020682,2]
[375989668,1753812651412,-460.0,0.00018763,2]
[375989669,1753812651421,-1646.54674506,0.00020682,2]
[375989670,1753812651431,-460.0,0.00020682,2]
[375989672,1753812651440,-460.0,0.00020682,2]
[375989674,1753812651449,-1064.28,0.00020682,2]
[375989676,1753812651457,-1469.03,0.00020682,2]
[375989678,1753812651468,-460.0,0.00020682,2]
[375989680,1753812651477,-4496.36,0.00020682,2]
[375989682,1753812651487,-460.0,0.00020683,2]
[375989684,1753812651496,-643.61,0.00020683,2]
[375989686,1753812651505,-460.0,0.00020683,2]
[375989688,1753812651514,-477.28,0.00020683,2]
[375989690,1753812651523,-460.0,0.00020683,2]
[375989692,1753812651533,-705.82,0.00020683,2]
[375989694,1753812651543,-460.0,0.00020683,2]
[375989696,1753812651552,-460.0,0.00020683,2]
[375989698,1753812651562,-189.46849398,0.00020683,2]
[375989700,1753812651571,-460.0,0.00020683,2]
[375989702,1753812651580,-460.0,0.00020683,2]
[375989704,1753812651590,-460.0,0.00020683,2]
[375989706,1753812651599,-546.12,0.00020683,2]
[375989708,1753812651608,-504.44,0.00020684,2]
[375989710,1753812651617,-460.0,0.00020684,2]
[375989712,1753812651627,-493.95,0.00020684,2]
[375989714,1753812651636,-460.0,0.00020684,2]
[375989716,1753812651646,-460.0,0.00020684,2]
[375989718,1753812651655,-460.0,0.00020684,2]
[375989720,1753812651664,-1620.2,0.00020684,2]
[375989722,1753812651673,-460.0,0.00020684,2]
[375989724,1753812651683,-956.26,0.00020684,2]
[375989726,1753812651692,-724.14,0.00020684,2]
[375989728,1753812651702,-460.0,0.00020684,2]
[375989730,1753812651711,-689.92,0.00020684,2]
[375989732,1753812651720,-516.53,0.00020684,2]
[375989734,1753812651729,-460.0,0.00020684,2]
[375989736,1753812651738,-568.60540724,0.00020685,2]
[375989738,1753812651748,-1586.69,0.00020685,2]
[375989740,1753812651761,-420.11713862,0.00020685,2]
[375989742,1753812651770,-1420.01,0.00020685,2]
[375989744,1753812651779,-460.0,0.00020685,2]
[375989746,1753812651788,-460.0,0.00020685,2]
[375989748,1753812651798,-460.0,0.00020685,2]
[375989750,1753812651808,-1488.32,0.00020686,2]
[375989752,1753812651817,-7759.41,0.00020686,2]
[375989754,1753812651827,-1104.46,0.00020686,2]
[375989756,1753812651836,-1355.72,0.00020686,2]
[375989758,1753812651847,-1482.46,0.00020687,2]
[375989760,1753812651857,-1730.21,0.00020687,2]
[375989762,1753812651866,-1705.34,0.00020688,2]
[375989764,1753812651876,-460.0,0.00020688,2]
[375989766,1753812651887,-151.0,0.00020689,2]
[375989768,1753812651896,-770.0,0.00020717,2]
[375989770,1753812651905,-500.0,0.00020717,2]
[375989772,1753812651914,-215.111652,0.00020721,3]
[375989774,1753812651924,-214.91980558,0.00020728,3]
[375989777,1753812651934,-1868.76977814,0.00020728,3]
[375989779,1753812651943,-1926.6,0.00020814,4]
[375989781,1753812651955,-1868.76977814,0.00020831,4]
[375989783,1753812651965,-453.84853599,0.000209,2]
[375989801,1753812652131,-460.0,0.00019037,2]
[375989803,1753812652140,-508.55808915,0.000209,2]
[375989848,1753812652549,-460.0,0.00018764,2]
[375989850,1753812652559,-460.0,0.00018765,2]
[375989852,1753812652569,-460.0,0.00019039,2]
[375989854,1753812652579,-460.0,0.00019313,2]
[375989857,1753812652588,-288.94,0.00019587,2]
[375989859,1753812652598,-151.0,0.00019895,2]
[375989861,1753812652608,-151.0,0.00020169,2]
[375989863,1753812652617,-151.0,0.00020443,2]
[375989865,1753812652626,-238.0,0.00020717,2]
[375989867,1753812652636,-630.98337486,0.000209,2]
[375989869,1753812652644,-1868.76977814,0.00020934,4]
[375989871,1753812652653,-2091.52,0.00020956,2]
[375989873,1753812652662,-460.0,0.00020956,2]
[375989875,1753812652672,-1662.95,0.00020956,2]
[375989877,1753812652681,-376.63,0.00020956,2]
[375989879,1753812652690,-460.0,0.00020956,2]
[375989881,1753812652699,-1064.28,0.00020956,2]
[375989883,1753812652708,-1469.03,0.00020956,2]
[375989885,1753812652721,-460.0,0.00020956,2]
[375989886,1753812652730,-4496.36,0.00020956,2]
[375989889,1753812652739,-460.0,0.00020957,2]
[375989891,1753812652749,-643.61,0.00020957,2]
[375989892,1753812652763,-460.0,0.00020957,2]
[375989894,1753812652772,-477.28,0.00020957,2]
[375989896,1753812652780,-460.0,0.00020957,2]
[375989898,1753812652791,-705.82,0.00020957,2]
[375989901,1753812652805,-460.0,0.00020957,2]
[375989903,1753812652814,-460.0,0.00020957,2]
[375989905,1753812652823,-460.0,0.00020957,2]
[375989907,1753812652833,-460.0,0.00020957,2]
[375989909,1753812652843,-460.0,0.00020957,2]
[375989911,1753812652853,-546.12,0.00020957,2]
[375989913,1753812652862,-504.44,0.00020958,2]
[375989915,1753812652871,-460.0,0.00020958,2]
[375989917,1753812652881,-493.95,0.00020958,2]
[375989919,1753812652890,-460.0,0.00020958,2]
[375989921,1753812652899,-460.0,0.00020958,2]
[375989923,1753812652908,-1620.2,0.00020958,2]
[375989925,1753812652918,-460.0,0.00020958,2]
[375989927,1753812652927,-956.26,0.00020958,2]
[375989929,1753812652936,-724.14,0.00020958,2]
[375989930,1753812652945,-460.0,0.00020958,2]
[375989932,1753812652954,-689.92,0.00020958,2]
[375989935,1753812652968,-516.53,0.00020958,2]
[375989937,1753812652977,-460.0,0.00020958,2]
[375989939,1753812652986,-1008.64198214,0.00020959,2]
[375989941,1753812652998,-578.04801786,0.00020959,2]
[375989943,1753812653008,-1420.01,0.00020959,2]
[375989945,1753812653017,-460.0,0.00020959,2]
[375989947,1753812653026,-460.0,0.00020959,2]
[375989949,1753812653035,-460.0,0.00020959,2]
[375989951,1753812653044,-1488.32,0.0002096,2]
[375989953,1753812653053,-1252.19417638,0.0002096,2]
[375991903,1753812707341,178.28110486,0.0001867,2]
[375991904,1753812722659,16666.0546036,0.00018665,2]
[375991907,1753813100628,2641.1130227,0.00017766,2]
[375991912,1753813557546,183.21624327,0.00018662,2]
[375991924,1753813798744,330.568182,0.00013699,2]
[375992164,1753813838345,-1200.0,0.0001876,2]
[375992166,1753813838355,-300.0,0.0001876,2]
[375992168,1753813838365,-460.0,0.00018761,2]
[375992170,1753813838373,-460.0,0.00018761,2]
[375992172,1753813838383,-460.0,0.00018761,2]
[375992174,1753813838392,-460.0,0.00018761,2]
[375992176,1753813838401,-61.37800903,0.00018761,2]
[375992178,1753813838413,-398.62199097,0.00018761,2]
[375992180,1753813838422,-77.37800283,0.00018761,2]
[375992492,1753813842955,-2370.81199717,0.00018761,2]
[375992494,1753813842965,-460.0,0.00018761,2]
[375992496,1753813842975,-460.0,0.00018761,2]
[375992498,1753813842985,-460.0,0.00018761,2]
[375992500,1753813842994,-460.0,0.00018761,2]
[375992502,1753813843003,-460.0,0.00018761,2]
[375992504,1753813843013,-460.0,0.00018761,2]
[375992506,1753813843023,-460.0,0.00018761,2]
[375992508,1753813843032,-1926.11,0.00018761,2]
[375992510,1753813843042,-460.0,0.00018761,2]
[375992512,1753813843051,-460.0,0.00018761,2]
[375992514,1753813843061,-460.0,0.00018761,2]
[375992517,1753813843070,-460.0,0.00018761,2]
[375992519,1753813843080,-460.0,0.00018761,2]
[375992521,1753813843090,-1106.07,0.00018761,2]
[375992523,1753813843099,-1469.2,0.00018761,2]
[375992525,1753813843108,-406.6499718,0.00018761,2]
[375992527,1753813843122,-460.0,0.00018761,2]
[375992529,1753813843132,-460.0,0.00018761,2]
[375992531,1753813843141,-460.0,0.00018761,2]
[375992533,1753813843150,-460.0,0.00018761,2]
[375992535,1753813843161,-460.0,0.00018761,2]
[375992537,1753813843170,-460.0,0.00018761,2]
[375992539,1753813843180,-460.0,0.00018761,2]
[375992541,1753813843190,-460.0,0.00018761,2]
[375992543,1753813843201,-304.93432179,0.00018761,2]
[375992546,1753813843218,-155.06567821,0.00018761,2]
[375992548,1753813843227,-460.0,0.00018761,2]
[375992550,1753813843237,-666.71432179,0.00018761,2]
[375992837,1753813846123,-13.17567821,0.00018761,2]
[375992839,1753813846133,-460.0,0.00018761,2]
[375992841,1753813846143,-460.0,0.00018762,2]
[375992843,1753813846152,-460.0,0.00018762,2]
[375992845,1753813846163,-460.0,0.00018762,2]
[375992847,1753813846173,-460.0,0.00018762,2]
[375992849,1753813846182,-464.5360767,0.00018762,2]
[375992851,1753813846191,-460.0,0.00018762,2]
[375992853,1753813846203,-460.0,0.00018762,2]
[375992855,1753813846214,-460.0,0.00018762,2]
[375992857,1753813846224,-460.0,0.00018762,2]
[375992859,1753813846233,-463.2498998,0.00018762,2]
[375992861,1753813846242,-460.0,0.00018762,2]
[375992863,1753813846251,-460.0,0.00018762,2]
[375992865,1753813846261,-460.0,0.00018762,2]
[375992867,1753813846270,-460.0,0.00018762,2]
[375992869,1753813846281,-460.0,0.00018762,2]
[375992871,1753813846290,-460.0,0.00018762,2]
[375992873,1753813846300,-460.0,0.00018762,2]
[375992875,1753813846310,-460.0,0.00018762,2]
[375992878,1753813846320,-460.0,0.00018762,2]
[375992880,1753813846329,-460.0,0.00018762,2]
[375992882,1753813846339,-460.0,0.00018762,2]
[375992884,1753813846348,-460.0,0.00018762,2]
[375992886,1753813846357,-460.0,0.00018762,2]
[375992888,1753813846367,-460.0,0.00018762,2]
[375992890,1753813846376,-460.0,0.00018762,2]
[375992892,1753813846385,-460.0,0.00018762,2]
[375992894,1753813846395,-460.0,0.00018762,2]
[375992896,1753813846407,-460.0,0.00018762,2]
[375992898,1753813846417,-589.99683395,0.00018762,2]
[375992900,1753813846426,-460.0,0.00018762,2]
[375992902,1753813846436,-460.0,0.00018762,2]
[375992904,1753813846445,-460.0,0.00018762,2]
[375992906,1753813846454,-460.0,0.00018762,2]
[375992908,1753813846463,-460.0,0.00018762,2]
[375992910,1753813846474,-460.0,0.00018762,2]
[375992912,1753813846483,-460.0,0.00018762,2]
[375992914,1753813846493,-4764.03,0.00018762,2]
[375992916,1753813846503,-327.80090162,0.00018762,2]
[375992918,1753813846512,-460.0,0.00018762,2]
[375992920,1753813846521,-460.0,0.00018762,2]
[375992922,1753813846532,-460.0,0.00018762,2]
[375992924,1753813846541,-460.0,0.00018762,2]
[375992926,1753813846550,-460.0,0.00018762,2]
[375992928,1753813846559,-460.0,0.00018762,2]
[375992930,1753813846568,-460.0,0.00018762,2]
[375992932,1753813846578,-460.0,0.00018762,2]
[375992934,1753813846587,-460.0,0.00018762,2]
[375992936,1753813846596,-462.98,0.00018762,2]
[375992938,1753813846605,-460.0,0.00018762,2]
[375992940,1753813846615,-460.0,0.00018762,2]
[375992942,1753813846624,-460.0,0.00018762,2]
[375992944,1753813846634,-788.78,0.00018762,2]
[375992946,1753813846643,-460.0,0.00018762,2]
[375992948,1753813846652,-460.0,0.00018762,2]
[375992950,1753813846662,-460.0,0.00018762,2]
[375992952,1753813846671,-460.0,0.00018762,2]
[375992954,1753813846680,-460.0,0.00018762,2]
[375992956,1753813846689,-460.0,0.00018762,2]
[375992958,1753813846698,-460.0,0.00018762,2]
[375992960,1753813846708,-777.59,0.00018762,2]
[375992962,1753813846717,-460.0,0.00018762,2]
[375992964,1753813846727,-460.0,0.00018762,2]
[375992966,1753813846736,-460.0,0.00018762,2]
[375992968,1753813846746,-383.15816031,0.00018762,2]
[375992970,1753813846755,-460.0,0.00018762,2]
[375992972,1753813846764,-460.0,0.00018762,2]
[375992974,1753813846776,-460.0,0.00018762,2]
[375992976,1753813846785,-483.06,0.00018762,2]
[375992978,1753813846795,-460.0,0.00018762,2]
[375992980,1753813846804,-1834.14,0.00018762,2]
[375992982,1753813846813,-460.0,0.00018762,2]
[375992984,1753813846822,-460.0,0.00018762,2]
[375992986,1753813846831,-460.0,0.00018762,2]
[375992988,1753813846840,-460.0,0.00018762,2]
[375992990,1753813846849,-460.0,0.00018762,2]
[375992992,1753813846859,-484.28,0.00018762,2]
[375992994,1753813846868,-471.53660898,0.00018762,2]
[375992996,1753813846878,-520.16,0.00018762,2]
[375992998,1753813846888,-460.0,0.00018762,2]
[375993000,1753813846897,-460.0,0.00018762,2]
[375993002,1753813846906,-460.0,0.00018762,2]
[375993004,1753813846915,-584.66,0.00018762,2]
[375993006,1753813846924,-460.0,0.00018762,2]
[375993008,1753813846934,-460.0,0.00018762,2]
[375993010,1753813846943,-460.0,0.00018762,2]
[375993012,1753813846953,-460.0,0.00018762,2]
[375993015,1753813846962,-460.0,0.00018762,2]
[375993017,1753813846972,-460.0,0.00018762,2]
[375993019,1753813846981,-460.0,0.00018762,2]
[375993021,1753813846991,-460.0,0.00018762,2]
[375993023,1753813847000,-460.0,0.00018762,2]
[375993025,1753813847009,-460.0,0.00018762,2]
[375993027,1753813847018,-460.0,0.00018763,2]
[375993029,1753813847029,-460.0,0.00018763,2]
[375993031,1753813847038,-460.0,0.00018763,2]
[375993033,1753813847047,-460.0,0.00018763,2]
[375993035,1753813847056,-460.0,0.00018763,2]
[375993037,1753813847066,-460.0,0.00018763,2]
[375993039,1753813847075,-460.0,0.00018763,2]
[375993041,1753813847085,-271.9091132,0.00018763,2]
[375993043,1753813847094,-460.0,0.00018763,2]
[375993045,1753813847103,-367.59117734,0.00018763,2]
[375993047,1753813847114,-460.0,0.00018763,2]
[375993049,1753813847127,-460.0,0.00018763,2]
[375993051,1753813847135,-460.0,0.00018763,2]